fUSD/lending_fUSD_20240105
["ID","MTS","AMOUNT","RATE_DAILY","PERIOD"]
[310261292,1704425453465,-500.0,0.00035616,3]
[310261293,1704425453474,-500.0,0.00035616,3]
[310261294,1704425453483,-506.95354632,0.00035616,3]
[310261295,1704425453492,-500.0,0.00035616,3]
[310261296,1704425453501,-500.0,0.00035616,3]
[310261297,1704425453509,-500.0,0.00035616,3]
[310261298,1704425453518,-568.77339239,0.00035616,3]
[310261299,1704425453527,-508.73159792,0.00035616,3]
[310261300,1704425453535,-500.0,0.00035616,3]
[310261301,1704425453544,-500.0,0.00035616,3]
[310261302,1704425453553,-500.0,0.00035616,3]
[310261303,1704425453562,-2569.95,0.00035616,3]
[310261304,1704425453571,-500.0,0.00035616,3]
[310261305,1704425453580,-576.28,0.00035616,3]
[310261306,1704425453589,-508.04877554,0.00035616,3]
[310261307,1704425453599,-500.0,0.00035616,3]
[310261308,1704425453607,-500.0,0.00035616,3]
[310261309,1704425453616,-552.41711252,0.00035616,3]
[310261310,1704425453625,-506.18453396,0.00035616,3]
[310261311,1704425453635,-500.0,0.00035616,3]
[310261312,1704425453644,-508.72111354,0.00035616,3]
[310261313,1704425453655,-308.90423367,0.00035616,3]
[310261314,1704425453665,-500.0,0.00035616,3]
[310261315,1704425453675,-500.0,0.00035616,3]
[310261316,1704425453685,-500.0,0.00035616,3]
[310261317,1704425453694,-500.0,0.00035616,3]
[310261318,1704425453703,-741.91,0.00035616,3]
[310261319,1704425453713,-500.0,0.00035616,3]
[310261320,1704425453723,-1829.56,0.00035616,3]
[310261321,1704425453733,-505.2283577,0.00035616,3]
[310261322,1704425453743,-500.0,0.00035616,3]
[310261323,1704425453754,-500.0,0.00035616,3]
[310261324,1704425453763,-500.0,0.00035616,3]
[310261325,1704425453772,-415.39764326,0.00035616,3]
[310261326,1704425453781,-500.0,0.00035616,3]
[310261327,1704425453791,-504.01146338,0.00035616,3]
[310261328,1704425453801,-500.0,0.00035616,3]
[310261329,1704425453811,-523.52724273,0.00035616,3]
[310261330,1704425453821,-500.0,0.00035616,3]
[310261331,1704425453830,-500.0,0.00035616,3]
[310261332,1704425453839,-500.0,0.00035616,3]
[310261333,1704425453849,-500.0,0.00035616,3]
[310261334,1704425453858,-500.0,0.00035616,3]
[310261335,1704425453867,-500.0,0.00035616,3]
[310261336,1704425453876,-2961.4,0.00035616,3]
[310261337,1704425453887,-500.0,0.00035616,3]
[310261338,1704425453896,-500.0,0.00035616,3]
[310261339,1704425453908,-675.46,0.00035616,3]
[310261340,1704425453917,-500.0,0.00035616,3]
[310261341,1704425453927,-504.60042011,0.00035616,3]
[310261342,1704425453937,-517.00612306,0.00035616,3]
[310261343,1704425453946,-500.0,0.00035616,3]
[310261344,1704425453956,-2578.41,0.00035616,3]
[310261345,1704425453965,-501.70309313,0.00035616,3]
[310261346,1704425453974,-500.0,0.00035616,3]
[310261347,1704425453984,-524.43438025,0.00035616,3]
[310261348,1704425453994,-576.96,0.00035616,3]
[310261349,1704425454004,-504.32183124,0.00035616,3]
[310261350,1704425454015,-500.0,0.00035616,3]
[310261351,1704425454024,-504.99972845,0.00035616,3]
[310261352,1704425454034,-503.40820238,0.00035616,3]
[310261353,1704425454043,-500.0,0.00035616,3]
[310261354,1704425454053,-500.0,0.00035616,3]
[310261355,1704425454062,-500.0,0.00035616,3]
[310261356,1704425454074,-1512.37,0.00035616,3]
[310261357,1704425454082,-500.0,0.00035616,3]
[310261358,1704425454091,-500.0,0.00035616,3]
[310261359,1704425454101,-500.0,0.00035616,3]
[310261360,1704425454110,-500.0,0.00035616,3]
[310261361,1704425454120,-500.0,0.00035616,3]
[310261362,1704425454129,-500.0,0.00035616,3]
[310261363,1704425454138,-500.34181264,0.00035616,3]
[310261364,1704425454147,-500.0,0.00035616,3]
[310261365,1704425454156,-500.0,0.00035616,3]
[310261366,1704425454166,-246.94785736,0.00035616,3]
[310261367,1704425454174,-500.0,0.00035616,3]
[310261368,1704425454184,-1272.83,0.00035616,3]
[310261369,1704425454193,-500.0,0.00035616,3]
[310261370,1704425454204,-500.0,0.00035616,3]
[310261371,1704425454214,-500.0,0.00035616,3]
[310261372,1704425454223,-500.0,0.00035616,3]
[310261373,1704425454233,-500.0,0.00035616,3]
[310261374,1704425454242,-500.0,0.00035616,3]
[310261375,1704425454251,-743.82,0.00035616,3]
[310261376,1704425454260,-500.0,0.00035616,3]
[310261377,1704425454270,-500.0,0.00035616,3]
[310261378,1704425454279,-500.0,0.00035616,3]
[310261379,1704425454290,-500.0,0.00035616,3]
[310261380,1704425454299,-500.0,0.00035616,3]
[310261381,1704425454310,-500.0,0.00035616,3]
[310261382,1704425454321,-500.0,0.00035616,3]
[310261383,1704425454331,-500.0,0.00035616,3]
[310261384,1704425454341,-616.09,0.00035616,3]
[310261385,1704425454351,-500.0,0.00035616,3]
[310261386,1704425454361,-2881.09,0.00035616,3]
[310261387,1704425454370,-500.0,0.00035616,2]
[310261388,1704425454380,-509.08006711,0.00035616,3]
[310261389,1704425454389,-500.0,0.00035616,3]
[310261390,1704425454398,-500.0,0.00035616,3]
[310261391,1704425454407,-500.0,0.00035616,3]
[310261392,1704425454416,-500.0,0.00035616,3]
[310261393,1704425454425,-4571.22,0.00035616,3]
[310261394,1704425454435,-500.0,0.00035616,3]
[310261395,1704425454445,-500.0,0.00035616,3]
[310261396,1704425454457,-4339.97,0.00035616,3]
[310261397,1704425454466,-4803.84,0.00035616,3]
[310261398,1704425454474,-500.0,0.00035616,3]
[310261399,1704425454483,-500.0,0.00035616,3]
[310261400,1704425454493,-500.0,0.00035616,3]
[310261401,1704425454502,-573.38956482,0.00035616,3]
[310261402,1704425454512,-500.0,0.00035616,3]
[310261403,1704425454521,-508.9487482,0.00035616,3]
[310261404,1704425454530,-500.0,0.00035616,3]
[310261405,1704425454539,-699.3,0.00035616,3]
[310261406,1704425454549,-623.85608019,0.00035616,3]
[310261407,1704425454559,-500.0,0.00035616,3]
[310261408,1704425454568,-500.0,0.00035616,3]
[310261409,1704425454578,-500.0,0.00035616,3]
[310261410,1704425454587,-501.49143737,0.00035616,3]
[310261411,1704425454597,-500.0,0.00035616,3]
[310261412,1704425454608,-500.0,0.00035616,3]
[310261413,1704425454618,-500.0,0.00035616,3]
[310261414,1704425454628,-504.79816329,0.00035616,3]
[310261415,1704425454637,-1187.06,0.00035616,3]
[310261416,1704425454647,-232.60777449,0.00035616,3]
[310261417,1704425454657,-741.45,0.00035616,3]
[310261418,1704425454666,-713.99,0.00035616,3]
[310261419,1704425454676,-500.0,0.00035616,3]
[310261420,1704425454686,-515.424479,0.00035616,2]
[310261421,1704425454695,-1151.77,0.00035616,3]
[310261422,1704425454704,-1438.74,0.00035616,3]
[310261423,1704425454715,-500.0,0.00035616,3]
[310261424,1704425454724,-500.0,0.00035616,3]
[310261425,1704425454733,-500.0,0.00035616,3]
[310261426,1704425454743,-500.0,0.00035616,3]
[310261427,1704425454754,-1780.23,0.00035616,3]
[310261428,1704425454764,-500.0,0.00035616,3]
[310261429,1704425454774,-1941.56,0.00035616,3]
[310261430,1704425454785,-500.0,0.00035616,3]
[310261431,1704425454795,-500.0,0.00035616,3]
[310261432,1704425454805,-507.12,0.00035616,3]
[310261433,1704425454814,-737.76,0.00035616,3]
[310261434,1704425454824,-500.0,0.00035616,3]
[310261435,1704425454835,-500.0,0.00035616,3]
[310261436,1704425454845,-500.0,0.00035616,3]
[310261437,1704425455010,-1683.81,0.00035616,3]
[310261438,1704425455028,-500.0,0.00035616,3]
[310261439,1704425455038,-500.0,0.00035616,3]
[310261440,1704425455048,-757.21,0.00035616,3]
[310261441,1704425455057,-500.0,0.00035616,3]
[310261442,1704425455066,-506.02265335,0.00035616,3]
[310261443,1704425455075,-502.64396593,0.00035616,3]
[310261444,1704425455084,-605.55,0.00035616,3]
[310261445,1704425455093,-500.0,0.00035616,3]
[310261446,1704425455102,-721.22,0.00035616,3]
[310261447,1704425455112,-1636.73,0.00035616,3]
[310261448,1704425455121,-1818.9,0.00035616,3]
[310261449,1704425455133,-808.83,0.00035616,3]
[310261450,1704425455142,-500.0,0.00035616,3]
[310261451,1704425455152,-500.0,0.00035616,3]
[310261452,1704425455161,-1633.57243463,0.00035616,7]
[310261453,1704425455171,-500.0,0.00035616,3]
[310261454,1704425455180,-500.0,0.00035616,3]
[310261455,1704425455189,-1154.3,0.00035616,3]
[310261456,1704425455198,-500.0,0.00035616,3]
[310261457,1704425455208,-500.0,0.00035616,3]
[310261458,1704425455218,-500.0,0.00035616,3]
[310261459,1704425455227,-2367.44,0.00035616,3]
[310261460,1704425455236,-500.0,0.00035616,3]
[310261461,1704425455246,-500.0,0.00035616,3]
[310261462,1704425455256,-685.21,0.00035616,3]
[310261463,1704425455265,-720.43,0.00035616,3]
[310261464,1704425455275,-500.0,0.00035616,3]
[310261465,1704425455284,-500.0,0.00035616,3]
[310261466,1704425455293,-12713.82,0.00035616,3]
[310261467,1704425455301,-500.0,0.00035616,3]
[310261468,1704425455311,-500.0,0.00035616,3]
[310261469,1704425455320,-599.87147991,0.00035616,3]
[310261470,1704425455329,-500.0,0.00035616,3]
[310261471,1704425455338,-500.0,0.00035616,3]
[310261472,1704425455347,-500.0,0.00035616,3]
[310261473,1704425455356,-446.30933349,0.00035616,3]
[310261474,1704425455365,-537.21,0.00035616,3]
[310261475,1704425455374,-500.0,0.00035616,3]
[310261476,1704425455383,-500.0,0.00035616,3]
[310261477,1704425455392,-500.0,0.00035616,3]
[310261478,1704425455402,-500.0,0.00035616,3]
[310261479,1704425455410,-503.56953804,0.00035616,3]
[310261480,1704425455419,-1128.74,0.00035616,3]
[310261481,1704425455429,-1038.9,0.00035616,3]
[310261482,1704425455438,-500.0,0.00035616,3]
[310261483,1704425455450,-500.0,0.00035616,3]
[310261484,1704425455461,-500.0,0.00035616,3]
[310261485,1704425455470,-502.78150187,0.00035616,3]
[310261486,1704425455479,-500.0,0.00035616,3]
[310261487,1704425455488,-504.84759922,0.00035616,3]
[310261488,1704425455498,-500.0,0.00035616,3]
[310261489,1704425455507,-500.0,0.00035616,3]
[310261490,1704425455517,-1358.49,0.00035616,3]
[310261491,1704425455526,-856.28,0.00035616,3]
[310261492,1704425455535,-500.0,0.00035616,3]
[310261493,1704425455544,-534.4993037,0.00035616,3]
[310261494,1704425455555,-500.0,0.00035616,3]
[310261495,1704425455564,-500.0,0.00035616,3]
[310261496,1704425455574,-1014.3,0.00035616,3]
[310261497,1704425455583,-1000.47,0.00035616,3]
[310261498,1704425455593,-500.0,0.00035616,3]
[310261499,1704425455602,-564.00063123,0.00035616,3]
[310261500,1704425455612,-1090.34,0.00035616,3]
[310261501,1704425455622,-500.0,0.00035616,3]
[310261502,1704425455631,-1239.16,0.00035616,3]
[310261503,1704425455640,-500.0,0.00035616,3]
[310261504,1704425455650,-500.0,0.00035616,3]
[310261505,1704425455659,-500.0,0.00035616,3]
[310261506,1704425455669,-500.0,0.00035616,3]
[310261507,1704425455678,-500.0,0.00035616,3]
[310261508,1704425455687,-500.0,0.00035616,3]
[310261509,1704425455696,-5374.08,0.00035616,3]
[310261510,1704425455705,-500.0,0.00035616,3]
[310261511,1704425455714,-532.58,0.00035616,3]
[310261512,1704425455724,-500.0,0.00035616,3]
[310261513,1704425455733,-903.2,0.00035616,3]
[310261514,1704425455742,-502.55669992,0.00035616,3]
[310261515,1704425455752,-500.0,0.00035616,3]
[310261516,1704425455761,-500.0,0.00035616,3]
[310261517,1704425455770,-500.0,0.00035616,3]
[310261518,1704425455779,-500.0,0.00035616,3]
[310261519,1704425455789,-500.0,0.00035616,3]
[310261520,1704425455798,-543.93,0.00035616,3]
[310261521,1704425455808,-500.0,0.00035616,3]
[310261522,1704425455818,-536.05118063,0.00035616,3]
[310261523,1704425455827,-847.35,0.00035616,3]
[310261524,1704425455837,-500.0,0.00035616,3]
[310261525,1704425455846,-500.0,0.00035616,3]
[310261526,1704425455856,-500.0,0.00035616,3]
[310261527,1704425455865,-522.69954474,0.00035616,3]
[310261528,1704425455874,-926.28,0.00035616,3]
[310261529,1704425455883,-358.59366586,0.00035616,3]
[310261530,1704425455892,-500.0,0.00035616,3]
[310261531,1704425455901,-500.0,0.00035616,3]
[310261532,1704425455911,-525.14,0.00035616,3]
[310261533,1704425455921,-500.0,0.00035616,3]
[310261534,1704425455930,-500.0,0.00035616,3]
[310261535,1704425455939,-501.8671854,0.00035616,3]
[310261536,1704425455949,-500.0,0.00035616,3]
[310261537,1704425455958,-500.0,0.00035616,3]
[310261538,1704425455968,-500.0,0.00035616,3]
[310261539,1704425455979,-500.0,0.00035616,3]
[310261540,1704425455988,-500.0,0.00035616,3]
[310261541,1704425455997,-175.44399042,0.00035616,3]
[310261542,1704425456006,-500.0,0.00035616,3]
[310261543,1704425456016,-597.71,0.00035616,3]
[310261544,1704425456025,-333.38424472,0.00035616,3]
[310261545,1704425456034,-500.0,0.00035616,3]
[310261546,1704425456043,-7505.95,0.00035616,3]
[310261547,1704425456052,-500.0,0.00035616,3]
[310261548,1704425456062,-500.0,0.00035616,3]
[310261549,1704425456071,-500.62845034,0.00035616,3]
[310261550,1704425456081,-633.867312,0.00035616,3]
[310261551,1704425456091,-714.54,0.00035616,3]
[310261552,1704425456100,-500.0,0.00035616,3]
[310261553,1704425456110,-500.0,0.00035616,3]
[310261554,1704425456119,-500.0,0.00035616,3]
[310261555,1704425456128,-500.0,0.00035616,3]
[310261556,1704425456138,-503.74574118,0.00035616,3]
[310261557,1704425456148,-500.0,0.00035616,3]
[310261558,1704425456158,-500.0,0.00035616,3]
[310261559,1704425456167,-517.60153342,0.00035616,3]
[310261560,1704425456176,-500.0,0.00035616,3]
[310261561,1704425456185,-500.0,0.00035616,3]
[310261562,1704425456194,-500.0,0.00035616,3]
[310261563,1704425456204,-500.0,0.00035616,3]
[310261564,1704425456213,-500.0,0.00035616,3]
[310261565,1704425456222,-500.0,0.00035616,3]
[310261566,1704425456231,-508.8634837,0.00035616,3]
[310261567,1704425456241,-500.0,0.00035616,3]
[310261568,1704425456250,-163.41767204,0.00035616,5]
[310261569,1704425456260,-500.0,0.00035616,3]
[310261570,1704425456269,-500.0,0.00035616,3]
[310261571,1704425456278,-500.0,0.00035616,3]
[310261572,1704425456288,-555.20526757,0.00035616,3]
[310261573,1704425456298,-836.59,0.00035616,3]
[310261574,1704425456310,-500.0,0.00035616,3]
[310261575,1704425456320,-500.0,0.00035616,3]
[310261576,1704425456330,-500.0,0.00035616,3]
[310261577,1704425456341,-503.15682305,0.00035616,3]
[310261578,1704425456350,-500.0,0.00035616,3]
[310261579,1704425456360,-500.0,0.00035616,3]
[310261580,1704425456369,-500.0,0.00035616,3]
[310261581,1704425456378,-500.0,0.00035616,3]
[310261582,1704425456387,-505.86402102,0.00035616,3]
[310261583,1704425456397,-500.0,0.00035616,3]
[310261584,1704425456406,-500.0,0.00035616,3]
[310261585,1704425456416,-543.02742229,0.00035616,3]
[310261586,1704425456425,-843.48,0.00035616,3]
[310261587,1704425456435,-500.0,0.00035616,3]
[310261588,1704425456444,-501.4746467,0.00035616,3]
[310261589,1704425456457,-500.0,0.00035616,3]
[310261590,1704425456467,-2843.39,0.00035616,3]
[310261591,1704425456476,-500.0,0.00035616,3]
[310261592,1704425456486,-511.55845177,0.00035616,2]
[310261593,1704425456495,-500.0,0.00035616,3]
[310261594,1704425456505,-731.98,0.00035616,3]
[310261595,1704425456514,-500.0,0.00035616,3]
[310261596,1704425456524,-500.0,0.00035616,3]
[310261597,1704425456533,-500.0,0.00035616,3]
[310261598,1704425456543,-500.0,0.00035616,3]
[310261599,1704425456552,-500.0,0.00035616,3]
[310261600,1704425456563,-500.0,0.00035616,3]
[310261601,1704425456572,-525.22779961,0.00035616,3]
[310261602,1704425456582,-765.74,0.00035616,3]
[310261603,1704425456591,-506.33393554,0.00035616,3]
[310261604,1704425456601,-500.0,0.00035616,3]
[310261605,1704425456611,-687.9,0.00035616,3]
[310261606,1704425456620,-500.0,0.00035616,3]
[310261607,1704425456629,-500.0,0.00035616,3]
[310261608,1704425456639,-500.0,0.00035616,3]
[310261609,1704425456650,-500.0,0.00035616,3]
[310261610,1704425456659,-500.0,0.00035616,3]
[310261611,1704425456669,-500.0,0.00035616,3]
[310261612,1704425456678,-500.0,0.00035616,3]
[310261613,1704425456687,-920.29,0.00035616,3]
[310261614,1704425456698,-500.0,0.00035616,3]
[310261615,1704425456707,-500.0,0.00035616,3]
[310261616,1704425456717,-500.0,0.00035616,3]
[310261617,1704425456727,-500.0,0.00035616,3]
[310261618,1704425456737,-500.0,0.00035616,3]
[310261619,1704425456746,-500.0,0.00035616,3]
[310261620,1704425456755,-500.0,0.00035616,3]
[310261621,1704425456765,-453.02922588,0.00035616,3]
[310261622,1704425456774,-500.0,0.00035616,3]
[310261623,1704425456784,-500.0,0.00035616,3]
[310261624,1704425456793,-500.0,0.00035616,3]
[310261625,1704425456802,-261.00167026,0.00035616,2]
[310261626,1704425456813,-500.0,0.00035616,3]
[310261627,1704425456822,-608.15,0.00035616,3]
[310261628,1704425456831,-500.0,0.00035616,3]
[310261629,1704425456841,-500.0,0.00035616,3]
[310261630,1704425456851,-500.0,0.00035616,3]
[310261631,1704425456861,-500.0,0.00035616,3]
[310261632,1704425456870,-500.0,0.00035616,3]
[310261633,1704425456879,-500.0,0.00035616,3]
[310261634,1704425456888,-500.0,0.00035616,3]
[310261635,1704425456898,-500.0,0.00035616,3]
[310261636,1704425456909,-500.0,0.00035616,3]
[310261637,1704425456919,-500.0,0.00035616,3]
[310261638,1704425456928,-500.0,0.00035616,3]
[310261639,1704425456938,-595.44638938,0.00035616,3]
[310261640,1704425456947,-500.0,0.00035616,3]
[310261641,1704425456957,-501.28797633,0.00035616,3]
[310261642,1704425456966,-500.0,0.00035616,3]
[310261643,1704425456976,-500.0,0.00035616,3]
[310261644,1704425456985,-500.0,0.00035616,3]
[310261645,1704425456994,-510.80525593,0.00035616,3]
[310261646,1704425457004,-500.0,0.00035616,3]
[310261647,1704425457013,-500.0,0.00035616,3]
[310261648,1704425457023,-500.0,0.00035616,3]
[310261649,1704425457033,-995.28,0.00035616,3]
[310261650,1704425457042,-506.66616846,0.00035616,3]
[310261651,1704425457051,-500.0,0.00035616,3]
[310261652,1704425457063,-1208.34,0.00035616,3]
[310261653,1704425457073,-500.0,0.00035616,3]
[310261654,1704425457082,-500.0,0.00035616,3]
[310261655,1704425457091,-500.0,0.00035616,3]
[310261656,1704425457101,-3826.66,0.00035616,3]
[310261657,1704425457111,-500.0,0.00035616,3]
[310261658,1704425457120,-500.0,0.00035616,3]
[310261659,1704425457130,-512.42720602,0.00035616,3]
[310261660,1704425457140,-500.0,0.00035616,3]
[310261661,1704425457151,-1465.93,0.00035616,3]
[310261662,1704425457161,-975.28,0.00035616,3]
[310261663,1704425457172,-2214.47,0.00035616,3]
[310261664,1704425457182,-500.0,0.00035616,3]
[310261665,1704425457192,-500.0,0.00035616,3]
[310261666,1704425457201,-500.0,0.00035616,3]
[310261667,1704425457211,-500.0,0.00035616,3]
[310261668,1704425457222,-500.0,0.00035616,3]
[310261669,1704425457231,-500.0,0.00035616,3]
[310261670,1704425457240,-500.0,0.00035616,3]
[310261671,1704425457250,-500.0,0.00035616,3]
[310261672,1704425457259,-500.0,0.00035616,3]
[310261673,1704425457269,-500.0,0.00035616,3]
[310261674,1704425457278,-500.0,0.00035616,3]
[310261675,1704425457288,-500.0,0.00035616,3]
[310261676,1704425457297,-500.0,0.00035616,3]
[310261677,1704425457306,-4026.21,0.00035616,3]
[310261678,1704425457317,-500.0,0.00035616,3]
[310261679,1704425457327,-508.1322916,0.00035616,3]
[310261680,1704425457337,-500.0,0.00035616,3]
[310261681,1704425457347,-377.46719922,0.00035616,3]
[310261682,1704425457356,-153.84,0.00035616,2]
[310261683,1704425457366,-150.0,0.00035616,2]
[310261684,1704425457426,-1249.23,0.000357,7]
[310261685,1704425457435,-8248.29,0.000357,7]
[310261686,1704425457444,-13965.33,0.000357,7]
[310261687,1704425457454,-409.62,0.00035798,2]
[310261688,1704425457465,-157.40105,0.00035798,2]
[310261689,1704425457475,-1333.47,0.00035818,2]
[310261690,1704425457485,-863.89603791,0.00035829,8]
[310261691,1704425457494,-500.0,0.00035889,3]
[310261692,1704425457504,-1113.29,0.00035889,3]
[310261693,1704425457513,-1165.16,0.00035889,3]
[310261694,1704425457522,-500.0,0.00035889,3]
[310261695,1704425457531,-500.0,0.0003589,3]
[310261696,1704425457541,-500.0,0.0003589,3]
[310261697,1704425457551,-510.59,0.0003589,3]
[310261698,1704425457562,-500.0,0.0003589,3]
[310261699,1704425457571,-500.0,0.0003589,3]
[310261700,1704425457582,-500.0,0.0003589,3]
[310261701,1704425457591,-500.0,0.0003589,3]
[310261702,1704425457600,-523.74498267,0.0003589,3]
[310261703,1704425457609,-500.0,0.0003589,3]
[310261704,1704425457618,-500.0,0.0003589,3]
[310261705,1704425457627,-500.0,0.0003589,3]
[310261706,1704425457636,-500.0,0.0003589,3]
[310261707,1704425457645,-500.0,0.0003589,3]
[310261708,1704425457654,-467.98035061,0.0003589,3]
[310261709,1704425457663,-500.0,0.0003589,3]
[310261710,1704425457673,-500.0,0.0003589,3]
[310261711,1704425457682,-500.0,0.0003589,3]
[310261712,1704425457692,-500.0,0.0003589,3]
[310261713,1704425457701,-520.62417503,0.0003589,3]
[310261714,1704425457711,-585.48,0.0003589,3]
[310261715,1704425457720,-500.0,0.0003589,3]
[310261716,1704425457729,-500.0,0.0003589,3]
[310261717,1704425457738,-500.0,0.0003589,3]
[310261718,1704425457747,-500.0,0.0003589,3]
[310261719,1704425457757,-500.0,0.0003589,3]
[310261720,1704425457766,-506.63692374,0.0003589,3]
[310261721,1704425457776,-500.0,0.0003589,3]
[310261722,1704425457785,-500.0,0.0003589,3]
[310261723,1704425457795,-500.0,0.0003589,3]
[310261724,1704425457805,-500.0,0.0003589,3]
[310261725,1704425457814,-500.0,0.0003589,3]
[310261726,1704425457824,-500.0,0.0003589,3]
[310261727,1704425457836,-500.0,0.0003589,3]
[310261728,1704425457846,-500.0,0.0003589,3]
[310261729,1704425457855,-500.0,0.0003589,3]
[310261730,1704425457865,-500.0,0.0003589,3]
[310261731,1704425457876,-500.0,0.0003589,3]
[310261732,1704425457885,-500.0,0.0003589,3]
[310261733,1704425457894,-512.23789528,0.0003589,3]
[310261734,1704425457905,-500.0,0.0003589,3]
[310261735,1704425457916,-336.93987641,0.0003589,3]
[310261736,1704425457926,-500.0,0.0003589,3]
[310261737,1704425457935,-500.0,0.0003589,3]
[310261738,1704425457944,-500.0,0.0003589,3]
[310261739,1704425457954,-500.0,0.0003589,3]
[310261740,1704425457963,-500.0,0.0003589,3]
[310261741,1704425457972,-597.65097196,0.0003589,3]
[310261742,1704425457982,-506.99039825,0.0003589,3]
[310261743,1704425457992,-500.0,0.0003589,3]
[310261744,1704425458001,-500.0,0.0003589,3]
[310261745,1704425458011,-500.0,0.0003589,3]
[310261746,1704425458020,-500.0,0.0003589,3]
[310261747,1704425458030,-513.71668386,0.0003589,3]
[310261748,1704425458039,-511.15670275,0.0003589,3]
[310261749,1704425458048,-500.0,0.0003589,3]
[310261750,1704425458060,-500.0,0.0003589,3]
[310261751,1704425458071,-510.47948782,0.0003589,3]
[310261752,1704425458080,-500.0,0.0003589,3]
[310261753,1704425458088,-500.0,0.0003589,3]
[310261754,1704425458097,-500.0,0.0003589,3]
[310261755,1704425458106,-500.0,0.0003589,3]
[310261756,1704425458114,-500.0,0.0003589,3]
[310261757,1704425458123,-510.71696559,0.0003589,3]
[310261758,1704425458132,-500.0,0.0003589,3]
[310261759,1704425458141,-500.0,0.0003589,3]
[310261760,1704425458150,-500.0,0.0003589,3]
[310261761,1704425458159,-641.15536855,0.0003589,3]
[310261762,1704425458168,-500.0,0.0003589,3]
[310261763,1704425458177,-500.0,0.0003589,3]
[310261764,1704425458187,-381.66264826,0.0003589,3]
[310261765,1704425458197,-500.0,0.0003589,3]
[310261766,1704425458206,-500.0,0.0003589,3]
[310261767,1704425458216,-500.0,0.0003589,3]
[310261768,1704425458225,-500.0,0.0003589,3]
[310261769,1704425458234,-500.0,0.0003589,3]
[310261770,1704425458243,-500.0,0.0003589,3]
[310261771,1704425458253,-500.0,0.0003589,3]
[310261772,1704425458262,-500.0,0.0003589,3]
[310261773,1704425458272,-519.06816588,0.0003589,3]
[310261774,1704425458282,-500.0,0.0003589,3]
[310261775,1704425458291,-500.0,0.0003589,3]
[310261776,1704425458302,-500.0,0.0003589,3]
[310261777,1704425458314,-500.0,0.0003589,3]
[310261778,1704425458323,-500.0,0.0003589,3]
[310261779,1704425458332,-500.0,0.0003589,3]
[310261780,1704425458341,-237.75806432,0.0003589,3]
[310261781,1704425458351,-500.0,0.0003589,3]
[310261782,1704425458360,-500.0,0.0003589,3]
[310261783,1704425458370,-500.0,0.0003589,3]
[310261784,1704425458380,-500.0,0.0003589,3]
[310261785,1704425458389,-500.0,0.0003589,3]
[310261786,1704425458399,-505.8032603,0.0003589,3]
[310261787,1704425458409,-500.0,0.0003589,3]
[310261788,1704425458419,-151.70484157,0.0003589,3]
[310261789,1704425458428,-500.0,0.0003589,3]
[310261790,1704425458438,-505.74590603,0.0003589,3]
[310261791,1704425458448,-500.0,0.0003589,3]